[Event "Betsys MČR v online bleskovém šachu 2021"]
[Site "Chess.com"]
[Date "2021.04.17"]
[Round "6"]
[White "Staci_fiknout_Navara_Plat"]
[Black "Svandik49"]
[Result "0-1"]
[WhiteElo "1903"]
[BlackElo "2262"]
[TimeControl "180+1"]
[EndTime "9:59:06 PDT"]
[Termination "Uživatel Svandik49 zvítězil po vzdání soupeře"]

1. c4 {[%clk 0:03:00.9]} 1... e5 {[%clk 0:02:58.2]} 2. Nc3 {[%clk 0:03:00.6]}
2... Bb4 {[%clk 0:02:58.4]} 3. g3 {[%clk 0:03:00.3]} 3... Nf6 {[%clk 0:02:55.5]}
4. Bg2 {[%clk 0:03:00.4]} 4... Bxc3 {[%clk 0:02:54.1]} 5. bxc3 {[%clk
0:03:00.2]} 5... O-O {[%clk 0:02:45.9]} 6. c5 {[%clk 0:03:00.3]} 6... Qe7 {[%clk
0:02:28.7]} 7. d4 {[%clk 0:02:59.4]} 7... Re8 {[%clk 0:02:27.7]} 8. Bg5 {[%clk
0:02:52.9]} 8... h6 {[%clk 0:02:25.7]} 9. Bxf6 {[%clk 0:02:52.6]} 9... Qxf6
{[%clk 0:02:25.6]} 10. e3 {[%clk 0:02:53.1]} 10... d6 {[%clk 0:02:17.7]} 11.
cxd6 {[%clk 0:02:52.5]} 11... Qxd6 {[%clk 0:02:13.8]} 12. Ne2 {[%clk 0:02:45.3]}
12... exd4 {[%clk 0:02:01.5]} 13. cxd4 {[%clk 0:02:46.2]} 13... Qb4+ {[%clk
0:01:59.5]} 14. Qd2 {[%clk 0:02:46.1]} 14... Qxd2+ {[%clk 0:02:00]} 15. Kxd2
{[%clk 0:02:46.7]} 15... c6 {[%clk 0:01:57.3]} 16. Rab1 {[%clk 0:02:43.5]} 16...
Nd7 {[%clk 0:01:56.1]} 17. Rhc1 {[%clk 0:02:43.4]} 17... Nb6 {[%clk 0:01:54.6]}
18. Nc3 {[%clk 0:02:33.4]} 18... Be6 {[%clk 0:01:44.9]} 19. a4 {[%clk
0:02:21.2]} 19... Rad8 {[%clk 0:01:32.3]} 20. Ne2 {[%clk 0:01:31.8]} 20... Rd7
{[%clk 0:01:18.5]} 21. Rb4 {[%clk 0:01:16.9]} 21... Nd5 {[%clk 0:01:09.6]} 22.
Bxd5 {[%clk 0:01:14.9]} 22... Bxd5 {[%clk 0:01:08.4]} 23. a5 {[%clk 0:01:07.3]}
23... Bf3 {[%clk 0:00:57.5]} 24. a6 {[%clk 0:00:53.1]} 24... bxa6 {[%clk
0:00:56.5]} 25. Ra4 {[%clk 0:00:47.4]} 25... Rb8 {[%clk 0:00:51.1]} 26. Nf4
{[%clk 0:00:43.3]} 26... Rb2+ {[%clk 0:00:36.5]} 27. Rc2 {[%clk 0:00:43.3]}
27... Rxc2+ {[%clk 0:00:36.5]} 28. Kxc2 {[%clk 0:00:44.2]} 28... c5 {[%clk
0:00:37]} 29. Rxa6 {[%clk 0:00:16.4]} 29... cxd4 {[%clk 0:00:35.6]} 30. exd4
{[%clk 0:00:16.5]} 30... g5 {[%clk 0:00:34]} 31. Nd3 {[%clk 0:00:11.5]} 31...
Rxd4 {[%clk 0:00:26.8]} 32. Rxa7 {[%clk 0:00:08.3]} 32... Be4 {[%clk 0:00:26.8]}
33. Ra3 {[%clk 0:00:08.4]} 33... Kg7 {[%clk 0:00:24.5]} 34. Kd2 {[%clk
0:00:08.7]} 34... Rd6 {[%clk 0:00:20.7]} 35. Ke3 {[%clk 0:00:08.8]} 35... Bg6
{[%clk 0:00:18.5]} 36. Ne5 {[%clk 0:00:08.5]} 36... Re6 {[%clk 0:00:18.6]} 37.
Kd4 {[%clk 0:00:08.8]} 37... Bf5 {[%clk 0:00:18.1]} 38. Re3 {[%clk 0:00:06]}
38... Rd6+ {[%clk 0:00:18.1]} 39. Kc3 {[%clk 0:00:06]} 39... Rd1 {[%clk
0:00:17.8]} 40. h4 {[%clk 0:00:02.4]} 40... gxh4 {[%clk 0:00:13.6]} 41. gxh4
{[%clk 0:00:03.3]} 41... Rh1 {[%clk 0:00:12.3]} 42. Rf3 {[%clk 0:00:03.5]} 42...
Be6 {[%clk 0:00:11.3]} 43. Rf4 {[%clk 0:00:03.5]} 43... Rh3+ {[%clk 0:00:10.6]}
44. Kd4 {[%clk 0:00:03]} 44... Ra3 {[%clk 0:00:10.7]} 45. Ke4 {[%clk 0:00:03]}
45... Ra2 {[%clk 0:00:10]} 46. Ke3 {[%clk 0:00:02.9]} 46... Ra3+ {[%clk
0:00:10.1]} 47. Ke4 {[%clk 0:00:03.3]} 47... f5+ {[%clk 0:00:09.6]} 48. Kd4
{[%clk 0:00:03]} 48... Kf6 {[%clk 0:00:09.5]} 49. Nd3 {[%clk 0:00:02]} 49...
Ra4+ {[%clk 0:00:08.3]} 50. Ke3 {[%clk 0:00:02.2]} 50... Ra3 {[%clk 0:00:08.6]}
51. Kd4 {[%clk 0:00:02.2]} 51... Ra2 {[%clk 0:00:09]} 52. Nc5 {[%clk 0:00:01.7]}
52... Rd2+ {[%clk 0:00:09]} 53. Ke3 {[%clk 0:00:01.9]} 53... Rd6 {[%clk
0:00:08.5]} 54. Nxe6 {[%clk 0:00:02.2]} 54... Rxe6+ {[%clk 0:00:09.4]} 55. Kf3
{[%clk 0:00:02.9]} 55... Ke5 {[%clk 0:00:09.8]} 56. Kg3 {[%clk 0:00:03.8]} 56...
Rg6+ {[%clk 0:00:10.1]} 57. Kf3 {[%clk 0:00:03.8]} 57... Rg1 {[%clk 0:00:10.1]}
58. Ke3 {[%clk 0:00:04.1]} 58... Rh1 {[%clk 0:00:10.1]} 59. Kf3 {[%clk 0:00:05]}
59... Rh3+ {[%clk 0:00:10.3]} 60. Kg2 {[%clk 0:00:03.7]} 60... Kxf4 {[%clk
0:00:10.3]} 61. Kxh3 {[%clk 0:00:04.3]} 61... Kf3 {[%clk 0:00:11]} 62. h5 {[%clk
0:00:04.5]} 62... Kxf2 {[%clk 0:00:10.4]} 63. Kh4 {[%clk 0:00:05.4]} 63... f4
{[%clk 0:00:10.2]} 64. Kh3 {[%clk 0:00:06.3]} 64... Ke2 {[%clk 0:00:10.7]} 65.
Kh4 {[%clk 0:00:07.2]} 65... f3 {[%clk 0:00:11.6]} 66. Kg4 {[%clk 0:00:08]}
66... f2 {[%clk 0:00:12.5]} 67. Kf5 {[%clk 0:00:08.9]} 67... f1=Q+ {[%clk
0:00:13.4]} 68. Kg6 {[%clk 0:00:09.8]} 68... Qf8 {[%clk 0:00:13.3]} 69. Kh7
{[%clk 0:00:09.8]} 69... Kf3 {[%clk 0:00:13.1]} 70. Kg6 {[%clk 0:00:10.7]} 70...
Kg4 {[%clk 0:00:12.7]} 71. Kh7 {[%clk 0:00:11.6]} 71... Kf4 {[%clk 0:00:12.5]}
72. Kg6 {[%clk 0:00:11.4]} 72... Qh8 {[%clk 0:00:12.8]} 73. Kf7 {[%clk
0:00:06.3]} 73... Kg4 {[%clk 0:00:13.7]} 0-1

[Event "Betsys MČR v online bleskovém šachu 2021"]
[Site "Chess.com"]
[Date "2021.04.17"]
[Round "6"]
[White "Varinius"]
[Black "JustFilip05"]
[Result "1-0"]
[WhiteElo "2435"]
[BlackElo "2137"]
[TimeControl "180+1"]
[EndTime "9:59:08 PDT"]
[Termination "Uživatel Varinius zvítězil na čas"]

1. d4 {[%clk 0:03:00.9]} 1... Nf6 {[%clk 0:02:59.1]} 2. Nf3 {[%clk 0:03:00.7]}
2... g6 {[%clk 0:02:58.2]} 3. c4 {[%clk 0:03:00.4]} 3... Bg7 {[%clk 0:02:58.2]}
4. Nc3 {[%clk 0:03:01]} 4... O-O {[%clk 0:02:57.9]} 5. e4 {[%clk 0:03:00.8]}
5... d6 {[%clk 0:02:58.2]} 6. h3 {[%clk 0:02:58.9]} 6... c5 {[%clk 0:02:50.1]}
7. d5 {[%clk 0:02:57.8]} 7... e5 {[%clk 0:02:49.9]} 8. Be2 {[%clk 0:02:30.9]}
8... a6 {[%clk 0:02:46.4]} 9. a4 {[%clk 0:02:28.5]} 9... Ne8 {[%clk 0:02:46.5]}
10. h4 {[%clk 0:02:18.3]} 10... h6 {[%clk 0:02:39.6]} 11. h5 {[%clk 0:02:17.9]}
11... g5 {[%clk 0:02:39.4]} 12. Nh2 {[%clk 0:02:17.7]} 12... f5 {[%clk
0:02:38.8]} 13. exf5 {[%clk 0:02:14.3]} 13... Bxf5 {[%clk 0:02:37.5]} 14. Bg4
{[%clk 0:02:14.7]} 14... Qd7 {[%clk 0:02:24.4]} 15. Be3 {[%clk 0:01:58.4]} 15...
Nf6 {[%clk 0:02:19.3]} 16. Be2 {[%clk 0:01:42.8]} 16... Qf7 {[%clk 0:02:08.4]}
17. g4 {[%clk 0:01:39.5]} 17... Bh7 {[%clk 0:01:56.1]} 18. Bd3 {[%clk
0:01:38.1]} 18... e4 {[%clk 0:01:53.3]} 19. Bc2 {[%clk 0:01:38]} 19... Nfd7
{[%clk 0:01:26.7]} 20. Qe2 {[%clk 0:01:35.1]} 20... Re8 {[%clk 0:00:56.2]} 21.
O-O {[%clk 0:01:32.9]} 21... Bd4 {[%clk 0:00:47.6]} 22. Rae1 {[%clk 0:01:30.9]}
22... Ne5 {[%clk 0:00:46.3]} 23. Bxe4 {[%clk 0:00:59.4]} 23... Bxe4 {[%clk
0:00:27.3]} 24. Nxe4 {[%clk 0:00:57]} 24... Qe7 {[%clk 0:00:05.4]} 25. b3 {[%clk
0:00:47.4]} 25... Nbd7 {[%clk 0:00:05.7]} 26. Bxd4 {[%clk 0:00:41.3]} 26... cxd4
{[%clk 0:00:06.6]} 27. Qd2 {[%clk 0:00:39]} 27... d3 {[%clk 0:00:06.5]} 28. Ng3
{[%clk 0:00:34.5]} 28... Qf6 {[%clk 0:00:05.2]} 29. Ne4 {[%clk 0:00:28]} 29...
Qe7 {[%clk 0:00:03.9]} 30. f4 {[%clk 0:00:22.5]} 30... gxf4 {[%clk 0:00:03.7]}
31. Qxf4 {[%clk 0:00:23.4]} 31... Rf8 {[%clk 0:00:03.3]} 32. Qxh6 {[%clk
0:00:22.4]} 32... Rxf1+ {[%clk 0:00:03.3]} 33. Rxf1 {[%clk 0:00:23.3]} 33... Qg7
{[%clk 0:00:03.8]} 34. Qxg7+ {[%clk 0:00:20.2]} 34... Kxg7 {[%clk 0:00:04.7]}
35. Nxd6 {[%clk 0:00:20.8]} 35... Rf8 {[%clk 0:00:05.1]} 36. Nf5+ {[%clk
0:00:20.6]} 36... Kf6 {[%clk 0:00:04.9]} 37. Nd6+ {[%clk 0:00:17]} 37... Kg5
{[%clk 0:00:05]} 38. Rxf8 {[%clk 0:00:15.7]} 38... Nxf8 {[%clk 0:00:05.9]} 39.
Kf2 {[%clk 0:00:15.8]} 39... b6 {[%clk 0:00:04.2]} 40. Nf3+ {[%clk 0:00:12.1]}
40... Nxf3 {[%clk 0:00:02]} 41. Kxf3 {[%clk 0:00:13]} 41... Nd7 {[%clk
0:00:01.8]} 42. Ke3 {[%clk 0:00:12.7]} 42... Nc5 {[%clk 0:00:02.2]} 43. b4
{[%clk 0:00:11.6]} 43... Nd7 {[%clk 0:00:01.5]} 44. Kxd3 {[%clk 0:00:10.4]}
44... Ne5+ {[%clk 0:00:02.2]} 45. Kc3 {[%clk 0:00:09.9]} 45... Nxg4 {[%clk
0:00:02.7]} 46. b5 {[%clk 0:00:08]} 46... axb5 {[%clk 0:00:02.1]} 47. axb5
{[%clk 0:00:08.9]} 47... Ne5 {[%clk 0:00:02.5]} 48. Nc8 {[%clk 0:00:08.8]} 48...
Nd7 {[%clk 0:00:02.3]} 49. Kd4 {[%clk 0:00:07.1]} 49... Kxh5 {[%clk 0:00:03]}
50. Ne7 {[%clk 0:00:06.4]} 50... Kg5 {[%clk 0:00:02.7]} 51. d6 {[%clk
0:00:06.5]} 51... Kf6 {[%clk 0:00:03.1]} 52. Kd5 {[%clk 0:00:06.6]} 52... Ne5
{[%clk 0:00:03.5]} 53. Nc6 {[%clk 0:00:06]} 53... Nd7 {[%clk 0:00:03.1]} 54. Nd4
{[%clk 0:00:05.5]} 54... Kf7 {[%clk 0:00:02.8]} 55. Kc6 {[%clk 0:00:05.8]} 55...
Ne5+ {[%clk 0:00:03.5]} 56. Kd5 {[%clk 0:00:04.9]} 56... Nd7 {[%clk 0:00:03.7]}
57. Nb3 {[%clk 0:00:05.3]} 57... Ke8 {[%clk 0:00:03.7]} 58. Nd2 {[%clk
0:00:05.6]} 58... Kd8 {[%clk 0:00:04.2]} 59. Ne4 {[%clk 0:00:06.3]} 59... Kc8
{[%clk 0:00:04.5]} 60. Kc6 {[%clk 0:00:06.8]} 60... Ne5+ {[%clk 0:00:04.5]} 61.
Kxb6 {[%clk 0:00:06.5]} 61... Nxc4+ {[%clk 0:00:04.9]} 62. Kc6 {[%clk
0:00:06.8]} 62... Ne5+ {[%clk 0:00:05.1]} 63. Kc5 {[%clk 0:00:06.7]} 63... Nd3+
{[%clk 0:00:05.1]} 64. Kd4 {[%clk 0:00:06.5]} 64... Nb4 {[%clk 0:00:05.5]} 65.
Nc5 {[%clk 0:00:06]} 65... Nc2+ {[%clk 0:00:04.2]} 66. Kd5 {[%clk 0:00:06.3]}
66... Ne3+ {[%clk 0:00:04.7]} 67. Kc6 {[%clk 0:00:06.3]} 67... Nc4 {[%clk
0:00:05.2]} 68. d7+ {[%clk 0:00:06]} 1-0

[Event "Betsys MČR v online bleskovém šachu 2021"]
[Site "Chess.com"]
[Date "2021.04.17"]
[Round "6"]
[White "sipos88"]
[Black "DavidekIII"]
[Result "1/2-1/2"]
[WhiteElo "1866"]
[BlackElo "2194"]
[TimeControl "180+1"]
[EndTime "9:59:15 PDT"]
[Termination "Remíza opakováním pozice"]

1. e4 {[%clk 0:02:52]} 1... c6 {[%clk 0:02:59.3]} 2. g3 {[%clk 0:02:48]} 2... d5
{[%clk 0:02:58.4]} 3. exd5 {[%clk 0:02:48.4]} 3... cxd5 {[%clk 0:02:40.4]} 4. d4
{[%clk 0:02:45.4]} 4... Nc6 {[%clk 0:02:40.1]} 5. f4 {[%clk 0:02:39.9]} 5... Nf6
{[%clk 0:02:38.9]} 6. Bg2 {[%clk 0:02:39.9]} 6... Bf5 {[%clk 0:02:34.5]} 7. c3
{[%clk 0:02:38.2]} 7... e6 {[%clk 0:02:33.9]} 8. Nf3 {[%clk 0:02:33.9]} 8... Bd6
{[%clk 0:02:14.1]} 9. O-O {[%clk 0:02:31.9]} 9... Qc7 {[%clk 0:02:11.4]} 10. Ne5
{[%clk 0:02:29.9]} 10... h5 {[%clk 0:02:06]} 11. Nd2 {[%clk 0:02:28.3]} 11...
Ng4 {[%clk 0:01:35.8]} 12. Ndf3 {[%clk 0:02:10]} 12... f6 {[%clk 0:01:05.7]} 13.
Nxc6 {[%clk 0:02:05.5]} 13... bxc6 {[%clk 0:01:02.9]} 14. h3 {[%clk 0:02:05.5]}
14... Nh6 {[%clk 0:00:59.8]} 15. Nh4 {[%clk 0:01:57.7]} 15... g6 {[%clk
0:00:49.7]} 16. Nxf5 {[%clk 0:01:51.8]} 16... Nxf5 {[%clk 0:00:50.6]} 17. Qf3
{[%clk 0:01:46]} 17... Kf7 {[%clk 0:00:49.3]} 18. Bd2 {[%clk 0:01:42.1]} 18...
Rab8 {[%clk 0:00:44.4]} 19. b4 {[%clk 0:01:41.6]} 19... a5 {[%clk 0:00:31.8]}
20. a3 {[%clk 0:01:41.2]} 20... axb4 {[%clk 0:00:31.7]} 21. axb4 {[%clk
0:01:40.9]} 21... Ra8 {[%clk 0:00:31.5]} 22. Rxa8 {[%clk 0:01:36.8]} 22... Rxa8
{[%clk 0:00:32.4]} 23. g4 {[%clk 0:01:37.2]} 23... hxg4 {[%clk 0:00:31]} 24.
hxg4 {[%clk 0:01:37.4]} 24... Ng7 {[%clk 0:00:30.9]} 25. Re1 {[%clk 0:01:17.3]}
25... Ra2 {[%clk 0:00:27.4]} 26. Be3 {[%clk 0:01:09.2]} 26... Qa7 {[%clk
0:00:26.1]} 27. Re2 {[%clk 0:01:08]} 27... Rxe2 {[%clk 0:00:25]} 28. Qxe2 {[%clk
0:01:08.4]} 28... Qa1+ {[%clk 0:00:25.4]} 29. Kf2 {[%clk 0:01:07.5]} 29... Qxc3
{[%clk 0:00:25.1]} 30. Qd2 {[%clk 0:01:05.3]} 30... Qxb4 {[%clk 0:00:22.3]} 31.
Qa2 {[%clk 0:01:01.4]} 31... Qb7 {[%clk 0:00:20]} 32. Bf1 {[%clk 0:00:53]} 32...
Qc7 {[%clk 0:00:19.6]} 33. Qa8 {[%clk 0:00:51.3]} 33... Bxf4 {[%clk 0:00:16.7]}
34. Be2 {[%clk 0:00:44.3]} 34... Bxe3+ {[%clk 0:00:15.9]} 35. Kxe3 {[%clk
0:00:44.6]} 35... Qg3+ {[%clk 0:00:15.9]} 36. Kd2 {[%clk 0:00:44.9]} 36... Qf4+
{[%clk 0:00:15.8]} 37. Ke1 {[%clk 0:00:41.9]} 37... Qc1+ {[%clk 0:00:12.8]} 38.
Kf2 {[%clk 0:00:41.7]} 38... Qf4+ {[%clk 0:00:11.7]} 39. Ke1 {[%clk 0:00:41.9]}
39... Qc7 {[%clk 0:00:12.2]} 40. Qa6 {[%clk 0:00:39.1]} 40... Ne8 {[%clk
0:00:11.2]} 41. Qa8 {[%clk 0:00:38.3]} 41... Ke7 {[%clk 0:00:10.6]} 42. Qa3+
{[%clk 0:00:37.1]} 42... Qd6 {[%clk 0:00:09.8]} 43. Qa7+ {[%clk 0:00:37]} 43...
Qd7 {[%clk 0:00:10.1]} 44. Qa3+ {[%clk 0:00:36.4]} 44... Nd6 {[%clk 0:00:09.6]}
45. Qh3 {[%clk 0:00:36.4]} 45... Kd8 {[%clk 0:00:05.9]} 46. Qh8+ {[%clk
0:00:35]} 46... Kc7 {[%clk 0:00:05.6]} 47. Qxf6 {[%clk 0:00:35]} 47... Ne4
{[%clk 0:00:04.2]} 48. Qxg6 {[%clk 0:00:34.1]} 48... Qe7 {[%clk 0:00:04.6]} 49.
Qh6 {[%clk 0:00:29]} 49... Qb4+ {[%clk 0:00:04.1]} 50. Kf1 {[%clk 0:00:28.4]}
50... Qb1+ {[%clk 0:00:04.2]} 51. Kg2 {[%clk 0:00:28.2]} 51... Qc2 {[%clk
0:00:04.1]} 52. Qf4+ {[%clk 0:00:26.5]} 52... Kb7 {[%clk 0:00:03.3]} 53. Qe3
{[%clk 0:00:23.7]} 53... Qd2 {[%clk 0:00:02.8]} 54. Qxd2 {[%clk 0:00:22.7]}
54... Nxd2 {[%clk 0:00:03.7]} 55. g5 {[%clk 0:00:23.4]} 55... Ne4 {[%clk
0:00:04.1]} 56. g6 {[%clk 0:00:24]} 56... Nf6 {[%clk 0:00:02.9]} 57. g7 {[%clk
0:00:24.3]} 57... c5 {[%clk 0:00:02.5]} 58. Bh5 {[%clk 0:00:24.6]} 58... Kc6
{[%clk 0:00:02.3]} 59. dxc5 {[%clk 0:00:24.3]} 59... Kxc5 {[%clk 0:00:02.4]} 60.
Bf7 {[%clk 0:00:23.9]} 60... e5 {[%clk 0:00:02.9]} 61. Kf2 {[%clk 0:00:24]}
61... e4 {[%clk 0:00:02.5]} 62. Ke3 {[%clk 0:00:22.9]} 62... Kd6 {[%clk
0:00:02.8]} 63. g8=Q {[%clk 0:00:22.6]} 63... Nxg8 {[%clk 0:00:02.2]} 64. Bxg8
{[%clk 0:00:23.5]} 64... Ke5 {[%clk 0:00:02.9]} 65. Bxd5 {[%clk 0:00:23.2]}
65... Kxd5 {[%clk 0:00:03.1]} 66. Ke2 {[%clk 0:00:23.2]} 66... Kd4 {[%clk
0:00:04]} 67. Kd2 {[%clk 0:00:23.2]} 67... e3+ {[%clk 0:00:04.9]} 68. Ke2 {[%clk
0:00:23.7]} 68... Ke4 {[%clk 0:00:05.8]} 69. Ke1 {[%clk 0:00:24.2]} 69... Kd3
{[%clk 0:00:06]} 70. Kd1 {[%clk 0:00:24.5]} 70... Kc3 {[%clk 0:00:05.3]} 71. Ke2
{[%clk 0:00:24.5]} 71... Kd4 {[%clk 0:00:05.3]} 72. Ke1 {[%clk 0:00:23.9]} 72...
Kc4 {[%clk 0:00:03.6]} 73. Ke2 {[%clk 0:00:24]} 73... Kd4 {[%clk 0:00:04]} 74.
Ke1 {[%clk 0:00:24.5]} 74... Ke4 {[%clk 0:00:04.6]} 75. Ke2 {[%clk 0:00:24.9]}
75... Kf4 {[%clk 0:00:04.9]} 76. Ke1 {[%clk 0:00:25.4]} 76... Kf3 {[%clk
0:00:05.5]} 77. Kf1 {[%clk 0:00:25.6]} 77... Kg3 {[%clk 0:00:04.8]} 78. Ke2
{[%clk 0:00:25.9]} 78... Kf4 {[%clk 0:00:05]} 79. Ke1 {[%clk 0:00:25.3]} 79...
Kg4 {[%clk 0:00:05.4]} 80. Ke2 {[%clk 0:00:25.7]} 80... Kf4 {[%clk 0:00:06]}
1/2-1/2

[Event "Betsys MČR v online bleskovém šachu 2021"]
[Site "Chess.com"]
[Date "2021.04.17"]
[Round "6"]
[White "milanpetras"]
[Black "DrStillestein"]
[Result "1-0"]
[WhiteElo "1846"]
[BlackElo "2100"]
[TimeControl "180+1"]
[EndTime "9:59:16 PDT"]
[Termination "Uživatel milanpetras zvítězil matem"]

1. e4 {[%clk 0:03:00.9]} 1... c5 {[%clk 0:03:00.2]} 2. Nf3 {[%clk 0:02:58.6]}
2... Nc6 {[%clk 0:03:00.7]} 3. c3 {[%clk 0:02:55.5]} 3... g6 {[%clk 0:02:59.3]}
4. d4 {[%clk 0:02:55]} 4... cxd4 {[%clk 0:02:59.3]} 5. cxd4 {[%clk 0:02:55.9]}
5... d5 {[%clk 0:02:55.9]} 6. exd5 {[%clk 0:02:51.1]} 6... Qxd5 {[%clk
0:02:56.8]} 7. Nc3 {[%clk 0:02:50.3]} 7... Qd6 {[%clk 0:02:48.2]} 8. d5 {[%clk
0:02:48.5]} 8... Ne5 {[%clk 0:02:44.8]} 9. Bb5+ {[%clk 0:02:42.2]} 9... Bd7
{[%clk 0:02:40.5]} 10. Bxd7+ {[%clk 0:02:23.9]} 10... Nxd7 {[%clk 0:02:40.1]}
11. Qd4 {[%clk 0:02:12.3]} 11... Ngf6 {[%clk 0:02:39.5]} 12. Bf4 {[%clk
0:02:10.8]} 12... Qb6 {[%clk 0:02:35.6]} 13. Qd2 {[%clk 0:01:51.9]} 13... Bg7
{[%clk 0:02:31.8]} 14. O-O {[%clk 0:01:50.9]} 14... O-O {[%clk 0:02:31.8]} 15.
Rac1 {[%clk 0:01:37.7]} 15... Rac8 {[%clk 0:02:22.9]} 16. Be3 {[%clk 0:01:34]}
16... Qa6 {[%clk 0:02:20.3]} 17. a4 {[%clk 0:01:25.1]} 17... Nb6 {[%clk
0:02:18.1]} 18. b3 {[%clk 0:01:18.4]} 18... Rfd8 {[%clk 0:02:12.5]} 19. h3
{[%clk 0:00:54.2]} 19... h5 {[%clk 0:01:59.3]} 20. Bd4 {[%clk 0:00:47.1]} 20...
Nbd7 {[%clk 0:01:27.7]} 21. Qe3 {[%clk 0:00:42.6]} 21... Kf8 {[%clk 0:01:24.2]}
22. Rfd1 {[%clk 0:00:40.9]} 22... Qd6 {[%clk 0:01:21.8]} 23. Bxa7 {[%clk
0:00:37.7]} 23... Nc5 {[%clk 0:01:15.4]} 24. Nb5 {[%clk 0:00:35.2]} 24... Qa6
{[%clk 0:01:07.5]} 25. Bxc5 {[%clk 0:00:32.6]} 25... Re8 {[%clk 0:01:01.9]} 26.
Bxe7+ {[%clk 0:00:30.9]} 26... Kg8 {[%clk 0:01:02.2]} 27. Rxc8 {[%clk
0:00:29.7]} 27... Rxc8 {[%clk 0:01:02.9]} 28. d6 {[%clk 0:00:28.8]} 28... Nd7
{[%clk 0:01:02.3]} 29. Nfd4 {[%clk 0:00:25.3]} 29... Qb6 {[%clk 0:00:58.6]} 30.
Nf3 {[%clk 0:00:23.3]} 30... Qc6 {[%clk 0:00:56.5]} 31. Nfd4 {[%clk 0:00:21.8]}
31... Qd5 {[%clk 0:00:56.1]} 32. Nc7 {[%clk 0:00:20.5]} 32... Qa5 {[%clk
0:00:51.1]} 33. Qe2 {[%clk 0:00:19.9]} 33... Qb6 {[%clk 0:00:46.3]} 34. Qb5
{[%clk 0:00:20.1]} 34... Qxb5 {[%clk 0:00:41.9]} 35. Ndxb5 {[%clk 0:00:19.7]}
35... Nc5 {[%clk 0:00:41.6]} 36. d7 {[%clk 0:00:19.2]} 36... Nxd7 {[%clk
0:00:41.3]} 37. Rxd7 {[%clk 0:00:19.2]} 37... Be5 {[%clk 0:00:41.5]} 38. Rd8+
{[%clk 0:00:19.4]} 38... Rxd8 {[%clk 0:00:41.7]} 39. Bxd8 {[%clk 0:00:19.8]}
39... Kg7 {[%clk 0:00:42.6]} 40. Kf1 {[%clk 0:00:19]} 40... f5 {[%clk
0:00:41.6]} 41. Ke2 {[%clk 0:00:18.7]} 41... Kf7 {[%clk 0:00:42]} 42. Kd3 {[%clk
0:00:18.6]} 42... g5 {[%clk 0:00:41.1]} 43. f3 {[%clk 0:00:18.6]} 43... g4
{[%clk 0:00:41.2]} 44. Nd5 {[%clk 0:00:18.6]} 44... gxf3 {[%clk 0:00:40.3]} 45.
gxf3 {[%clk 0:00:18.6]} 45... Ke6 {[%clk 0:00:40.9]} 46. Nb4 {[%clk 0:00:17.1]}
46... Bg3 {[%clk 0:00:39.6]} 47. Nc2 {[%clk 0:00:18]} 47... Kd5 {[%clk
0:00:39.7]} 48. Ne3+ {[%clk 0:00:17.3]} 48... Kc6 {[%clk 0:00:39.8]} 49. Bg5
{[%clk 0:00:16.5]} 49... f4 {[%clk 0:00:39.3]} 50. Ng2 {[%clk 0:00:15]} 50...
Bf2 {[%clk 0:00:37.8]} 51. Bxf4 {[%clk 0:00:14.8]} 51... Bc5 {[%clk 0:00:37.8]}
52. Be3 {[%clk 0:00:14.5]} 52... Be7 {[%clk 0:00:38.2]} 53. f4 {[%clk
0:00:14.9]} 53... Kd5 {[%clk 0:00:38.6]} 54. f5 {[%clk 0:00:15.2]} 54... Ke5
{[%clk 0:00:38.9]} 55. Bd4+ {[%clk 0:00:12.1]} 55... Kxf5 {[%clk 0:00:38.8]} 56.
Ke2 {[%clk 0:00:10.4]} 56... Ke4 {[%clk 0:00:39]} 57. Bg7 {[%clk 0:00:09.1]}
57... Bc5 {[%clk 0:00:38.7]} 58. Nc3+ {[%clk 0:00:08.6]} 58... Kf5 {[%clk
0:00:37.3]} 59. Nd5 {[%clk 0:00:08]} 59... Ke6 {[%clk 0:00:37.3]} 60. Ngf4+
{[%clk 0:00:06.9]} 60... Kf7 {[%clk 0:00:36.6]} 61. b4 {[%clk 0:00:07.6]} 61...
Bd6 {[%clk 0:00:36]} 62. Bd4 {[%clk 0:00:07.4]} 62... Ke8 {[%clk 0:00:35.1]} 63.
b5 {[%clk 0:00:07.6]} 63... Kd7 {[%clk 0:00:34.9]} 64. a5 {[%clk 0:00:08.2]}
64... Kc8 {[%clk 0:00:34.4]} 65. a6 {[%clk 0:00:08.3]} 65... bxa6 {[%clk
0:00:31.8]} 66. bxa6 {[%clk 0:00:08.6]} 66... Bb8 {[%clk 0:00:31.7]} 67. Nxh5
{[%clk 0:00:07.9]} 67... Bd6 {[%clk 0:00:29.5]} 68. Nhf6 {[%clk 0:00:08.8]}
68... Bg3 {[%clk 0:00:27.2]} 69. h4 {[%clk 0:00:09.3]} 69... Bxh4 {[%clk
0:00:27.3]} 70. Ke3 {[%clk 0:00:07.9]} 70... Bg3 {[%clk 0:00:26.8]} 71. Ke4
{[%clk 0:00:08.1]} 71... Bd6 {[%clk 0:00:27]} 72. Kd3 {[%clk 0:00:08.5]} 72...
Bg3 {[%clk 0:00:26.4]} 73. Kc4 {[%clk 0:00:09.4]} 73... Bb8 {[%clk 0:00:26]} 74.
Kb5 {[%clk 0:00:10.1]} 74... Kd8 {[%clk 0:00:26.1]} 75. Kb6 {[%clk 0:00:10.2]}
75... Kc8 {[%clk 0:00:26.4]} 76. Ne4 {[%clk 0:00:09.7]} 76... Ba7+ {[%clk
0:00:27.3]} 77. Kxa7 {[%clk 0:00:08.7]} 77... Kd7 {[%clk 0:00:28]} 78. Kb7
{[%clk 0:00:08.5]} 78... Ke6 {[%clk 0:00:27.6]} 79. a7 {[%clk 0:00:08.7]} 79...
Kxd5 {[%clk 0:00:28.5]} 80. a8=Q {[%clk 0:00:08.8]} 80... Kxe4 {[%clk
0:00:29.4]} 81. Qe8+ {[%clk 0:00:08.5]} 81... Kxd4 {[%clk 0:00:30.3]} 82. Kc6
{[%clk 0:00:08.4]} 82... Kc4 {[%clk 0:00:30.1]} 83. Qe4+ {[%clk 0:00:07.9]}
83... Kc3 {[%clk 0:00:30.1]} 84. Kc5 {[%clk 0:00:07.8]} 84... Kd2 {[%clk
0:00:31]} 85. Qf3 {[%clk 0:00:07.5]} 85... Kc1 {[%clk 0:00:31.9]} 86. Kc4 {[%clk
0:00:07.4]} 86... Kb1 {[%clk 0:00:32.2]} 87. Qe2 {[%clk 0:00:07.1]} 87... Ka1
{[%clk 0:00:33.1]} 88. Kb3 {[%clk 0:00:07.1]} 88... Kb1 {[%clk 0:00:33.3]} 89.
Qb2# {[%clk 0:00:07.1]} 1-0